fUSD/lending_fUSD_20260620
["ID","MTS","AMOUNT","RATE_DAILY","PERIOD"]
[425811254,1781927451000,-158.31,0.0002863,30]
[425811256,1781927451000,-158.4,0.0002863,30]
[425811262,1781927451000,-156.83,0.00029232,2]
[425811259,1781927451000,-153.67,0.0002878,30]
[425811258,1781927451000,-153.67,0.00028705,7]
[425811261,1781927451000,-158.4,0.00028931,7]
[425811260,1781927451000,-156.83,0.00028931,7]
[425811263,1781927451000,-158.4,0.00029232,2]
[425811266,1781927451000,-158.4,0.00029835,7]
[425811271,1781927451000,-153.67,0.00028856,2]
[425811272,1781927451000,-141.83,0.00028924,30]
[425811270,1781927451000,-3444.88176063,0.00033,2]
[425811267,1781927451000,-158.45,0.00030136,2]
[425811268,1781927451000,-770.0,0.00032921,30]
[425811264,1781927451000,-156.83,0.00029534,30]
[425811265,1781927451000,-158.4,0.00029534,30]
[425811269,1781927451000,-3292.51823937,0.00033,2]
[425811273,1781927510000,-683.52672506,0.00016438,2]
[425811274,1781927564000,-382.94418662,0.00016437,2]
[425811275,1781927618000,-531.35591943,0.00016437,2]
[425811276,1781927619000,1000.0,0.00027199,120]
[425811277,1781927623000,108654.92707751,0.00015,2]
[425811278,1781927672000,-386.15,0.00015,2]
[425811279,1781927687000,-386.15,0.00015,2]
[425811280,1781927688000,604.09483729,8e-05,2]
[425811281,1781927702000,-268.06093063,0.00014999,2]
[425811282,1781927754000,-166.66,0.00013,5]
[425811283,1781927767000,-166.66,0.00013,5]
[425811284,1781927781000,-4991.78062905,0.00013,5]
[425811285,1781927795000,-4991.78062905,0.00013,5]
[425811286,1781927832000,263.95,0.00025432,120]
[425811287,1781927833000,263.95,0.00028258,120]
[425811288,1781927997000,-407.0,0.000122,2]
[425811289,1781928011000,-208.36608848,0.000122,2]
[425811290,1781928037000,-4991.78062905,0.00013,5]
[425811291,1781928038000,-514.86685226,0.00013,5]
[425811293,1781928065000,-402.0,0.00012999,2]
[425811295,1781928067000,-187.64265144,0.00012999,2]
[425811296,1781928067000,-193.09478404,0.0001342,2]
[425811294,1781928067000,-21.26256452,0.00012999,2]
[425811297,1781928093000,-156.90521596,0.0001342,2]
[425811298,1781928095000,-156.90521596,0.0001342,2]
[425811299,1781928133000,-96.57805591,0.0001342,2]
[425811300,1781928146000,-405.0,0.000142,2]
[425811301,1781928172000,-238.9096724,0.000142,2]
[425811302,1781928174000,-150.0,0.00014341,2]
[425811303,1781928174000,-88.9096724,0.00014483,2]
[425811304,1781928212000,-61.0903276,0.00014483,2]
[425811305,1781928252000,243.41961904,0.00022,30]
[425811306,1781928266000,-326.11904241,0.00012711,2]
[425811307,1781928320000,-250.0,0.00014,2]
[425811308,1781928351000,264.0,0.00030137,120]
[425811309,1781928374000,-150.0,0.0001233,2]
[425811310,1781928508000,199.094714,0.0002,120]
[425811327,1781928632000,-193.01743324,0.000133,2]
[425811332,1781928632000,-500.0,0.000133,2]
[425811330,1781928632000,-500.0,0.000133,2]
[425811328,1781928632000,-500.0,0.000133,2]
[425811329,1781928632000,-500.0,0.000133,2]
[425811326,1781928632000,-500.0,0.000133,2]
[425811333,1781928632000,-500.0,0.000133,2]
[425811323,1781928632000,-296.28379516,0.00013299,2]
[425811321,1781928632000,-150.11,0.00013165,2]
[425811319,1781928632000,-151.33,0.00012735,2]
[425811325,1781928632000,-500.0,0.000133,2]
[425811324,1781928632000,-500.0,0.000133,2]
[425811320,1781928632000,-202.53432694,0.0001295,2]
[425811322,1781928632000,-526.52886179,0.00013299,2]
[425811331,1781928632000,-500.0,0.000133,2]
[425811344,1781928632000,-517.14256691,0.00014999,2]
[425811335,1781928632000,-500.0,0.000133,2]
[425811336,1781928632000,-12777.0211774,0.00013301,9]
[425811348,1781928632000,-34672.24706624,0.00015,2]
[425811347,1781928632000,-71331.60639694,0.00015,2]
[425811349,1781928632000,-464.12272072,0.00015,2]
[425811343,1781928632000,-471.77530222,0.00014999,2]
[425811340,1781928632000,-27139.50945018,0.000149,2]
[425811346,1781928632000,-514.38257879,0.00014999,2]
[425811342,1781928632000,-216.28381402,0.00014992,2]
[425811341,1781928632000,-7113.87564602,0.00014989,2]
[425811339,1781928632000,-349.0,0.00014481,2]
[425811338,1781928632000,-275.0,0.00013566,2]
[425811334,1781928632000,-500.0,0.000133,2]
[425811337,1781928632000,-150.0,0.00013433,2]
[425811345,1781928632000,-503.9166706,0.00014999,2]
[425811372,1781928637000,-524.39906621,0.00016438,2]
[425811371,1781928637000,-524.39906621,0.00016438,2]
[425811369,1781928637000,-1500.0,0.0001615,2]
[425811370,1781928637000,-155.1,0.00016438,2]
[425811367,1781928637000,-183.0,0.00016,2]
[425811363,1781928637000,-112157.05337796,0.00015,2]
[425811365,1781928637000,-2278.70136935,0.00015807,2]
[425811364,1781928637000,-1020.0,0.00015,2]
[425811361,1781928637000,-500.0,0.00013299,2]
[425811362,1781928637000,-15782.64211598,0.00015,2]
[425811374,1781928637000,-524.39906621,0.00016438,2]
[425811366,1781928637000,-780.37716789,0.00016,2]
[425811373,1781928637000,-524.39906621,0.00016438,2]
[425811368,1781928637000,-300.0,0.00016,2]
[425811382,1781928637000,-524.39906621,0.00016438,2]
[425811375,1781928637000,-524.39906621,0.00016438,2]
[425811389,1781928637000,-524.39906621,0.00016438,2]
[425811386,1781928637000,-524.39906621,0.00016438,2]
[425811388,1781928637000,-524.39906621,0.00016438,2]
[425811387,1781928637000,-524.39906621,0.00016438,2]
[425811385,1781928637000,-524.39906621,0.00016438,2]
[425811383,1781928637000,-524.39906621,0.00016438,2]
[425811384,1781928637000,-524.39906621,0.00016438,2]
[425811381,1781928637000,-524.39906621,0.00016438,2]
[425811380,1781928637000,-524.39906621,0.00016438,2]
[425811378,1781928637000,-524.39906621,0.00016438,2]
[425811376,1781928637000,-524.39906621,0.00016438,2]
[425811377,1781928637000,-524.39906621,0.00016438,2]
[425811379,1781928637000,-524.39906621,0.00016438,2]
[425811429,1781928638000,-1555.5,0.00016698,2]
[425811423,1781928638000,-524.39906621,0.00016438,2]
[425811427,1781928638000,-500.0,0.00016438,2]
[425811425,1781928638000,-524.39906621,0.00016438,2]
[425811422,1781928638000,-524.39906621,0.00016438,2]
[425811426,1781928638000,-524.39906621,0.00016438,2]
[425811421,1781928638000,-524.39906621,0.00016438,2]
[425811418,1781928638000,-524.39906621,0.00016438,2]
[425811428,1781928638000,-27139.50945015,0.00016581,2]
[425811420,1781928638000,-524.39906621,0.00016438,2]
[425811424,1781928638000,-524.39906621,0.00016438,2]
[425811431,1781928638000,-6226.29,0.00016922,2]
[425811437,1781928638000,-1613.0535,0.00017246,2]
[425811434,1781928638000,-500.0,0.00016986,2]
[425811433,1781928638000,-150.99,0.00016922,2]
[425811432,1781928638000,-9999.99,0.00016922,2]
[425811436,1781928638000,-500.0,0.00017151,2]
[425811435,1781928638000,-208.1482903,0.00016986,2]
[425811438,1781928638000,-846.7,0.00017295,2]
[425811452,1781928638000,-501.08961846,0.00017725,2]
[425811441,1781928638000,-276.3,0.00017353,2]
[425811439,1781928638000,-855.17,0.0001735,2]
[425811443,1781928638000,-6705.06,0.00017404,2]
[425811419,1781928638000,-524.39906621,0.00016438,2]
[425811430,1781928638000,-500.0,0.00016712,2]
[425811417,1781928638000,-524.39906621,0.00016438,2]
[425811396,1781928638000,-524.39906621,0.00016438,2]
[425811412,1781928638000,-524.39906621,0.00016438,2]
[425811391,1781928638000,-524.39906621,0.00016438,2]
[425811394,1781928638000,-524.39906621,0.00016438,2]
[425811393,1781928638000,-524.39906621,0.00016438,2]
[425811390,1781928638000,-524.39906621,0.00016438,2]
[425811392,1781928638000,-524.39906621,0.00016438,2]
[425811446,1781928638000,-150.0,0.00017419,2]
[425811395,1781928638000,-524.39906621,0.00016438,2]
[425811397,1781928638000,-524.39906621,0.00016438,2]
[425811403,1781928638000,-524.39906621,0.00016438,2]
[425811402,1781928638000,-524.39906621,0.00016438,2]
[425811404,1781928638000,-524.39906621,0.00016438,2]
[425811398,1781928638000,-524.39906621,0.00016438,2]
[425811401,1781928638000,-524.39906621,0.00016438,2]
[425811405,1781928638000,-524.39906621,0.00016438,2]
[425811399,1781928638000,-524.39906621,0.00016438,2]
[425811400,1781928638000,-524.39906621,0.00016438,2]
[425811406,1781928638000,-524.39906621,0.00016438,2]
[425811408,1781928638000,-524.39906621,0.00016438,2]
[425811409,1781928638000,-524.39906621,0.00016438,2]
[425811410,1781928638000,-524.39906621,0.00016438,2]
[425811407,1781928638000,-524.39906621,0.00016438,2]
[425811415,1781928638000,-524.39906621,0.00016438,2]
[425811413,1781928638000,-524.39906621,0.00016438,2]
[425811416,1781928638000,-524.39906621,0.00016438,2]
[425811411,1781928638000,-524.39906621,0.00016438,2]
[425811414,1781928638000,-524.39906621,0.00016438,2]
[425811448,1781928638000,-444.31,0.00017428,2]
[425811450,1781928638000,-9051.02933995,0.00017628,2]
[425811456,1781928638000,-166.29,0.00017737,2]
[425811513,1781928638000,-27139.50945015,0.00019943,2]
[425811514,1781928638000,-1934.38338736,0.00019986,2]
[425811516,1781928638000,-540.6474904,0.0002,2]
[425811520,1781928638000,-4977.62640007,0.0002,2]
[425811521,1781928638000,-901.04152127,0.0002,2]
[425811518,1781928638000,-1063.05260875,0.0002,2]
[425811517,1781928638000,-200.0,0.0002,2]
[425811522,1781928638000,-152.0,0.0002,2]
[425811519,1781928638000,-52543.49065504,0.0002,2]
[425811523,1781928638000,-159.0,0.0002,2]
[425811526,1781928638000,-298.29,0.0002,2]
[425811525,1781928638000,-15679.09,0.0002,2]
[425811528,1781928638000,-529.0,0.0002,2]
[425811530,1781928638000,-184.0,0.0002,2]
[425811524,1781928638000,-24146.36,0.0002,2]
[425811527,1781928638000,-163.81952487,0.0002,2]
[425811533,1781928638000,-549.0,0.0002,2]
[425811529,1781928638000,-775.0,0.0002,2]
[425811531,1781928638000,-8616.0,0.0002,2]
[425811532,1781928638000,-178.0,0.0002,2]
[425811535,1781928638000,-704.0,0.00020136,2]
[425811534,1781928638000,-3081.71,0.00020025,2]
[425811536,1781928638000,-1743.89,0.00020361,2]
[425811454,1781928638000,-7757.64,0.00017728,2]
[425811538,1781928638000,-9051.02933992,0.00020384,2]
[425811515,1781928638000,-166.66,0.00019988,2]
[425811502,1781928638000,-704.0,0.00019452,2]
[425811537,1781928638000,-155.1,0.00020381,2]
[425811511,1781928638000,-231.43121046,0.000199,2]
[425811506,1781928638000,-166.66,0.00019592,2]
[425811458,1781928638000,-1672.7364795,0.00017794,2]
[425811462,1781928638000,-1526.89,0.00018015,2]
[425811464,1781928638000,-27139.50945015,0.00018262,2]
[425811470,1781928638000,-254.54,0.00018399,2]
[425811481,1781928638000,-466.36,0.00018896,2]
[425811468,1781928638000,-4395.03,0.00018356,2]
[425811466,1781928638000,-1734.62772924,0.00018342,2]
[425811475,1781928638000,-166.66,0.00018801,2]
[425811479,1781928638000,-1798.80895522,0.0001889,2]
[425811487,1781928638000,-160.0,0.00019,2]
[425811477,1781928638000,-200.0,0.00018838,2]
[425811460,1781928638000,-164.7,0.00017973,2]
[425811472,1781928638000,-155.1,0.0001841,2]
[425811485,1781928638000,-5252.71759387,0.00019,2]
[425811489,1781928638000,-9051.02933992,0.00019006,2]
[425811494,1781928638000,-747.91,0.00019175,2]
[425811491,1781928638000,-1951.04,0.00019102,2]
[425811498,1781928638000,-2514.5642899,0.000194,2]
[425811496,1781928638000,-166.66,0.00019197,2]
[425811500,1781928638000,-1865.36488656,0.00019438,2]
[425811510,1781928638000,-231.43121046,0.000199,2]
[425811512,1781928638000,-200.0,0.00019908,2]
[425811508,1781928638000,-231.43121047,0.000199,2]
[425811504,1781928638000,-846.7,0.00019457,2]
[425811483,1781928638000,-936.87,0.00018973,2]
[425811580,1781928639000,-6499.59,0.0002137,2]
[425811573,1781928639000,-151.0,0.00021082,2]
[425811577,1781928639000,-151.0,0.00021082,2]
[425811570,1781928639000,-151.0,0.00021082,2]
[425811579,1781928639000,-151.0,0.00021082,2]
[425811571,1781928639000,-151.0,0.00021082,2]
[425811568,1781928639000,-151.0,0.00021082,2]
[425811572,1781928639000,-151.0,0.00021082,2]
[425811569,1781928639000,-151.0,0.00021082,2]
[425811581,1781928639000,-265.04320381,0.0002137,10]
[425811575,1781928639000,-151.0,0.00021082,2]
[425811584,1781928639000,-846.7,0.00021619,2]
[425811583,1781928639000,-704.0,0.00021506,2]
[425811574,1781928639000,-151.0,0.00021082,2]
[425811578,1781928639000,-151.0,0.00021082,2]
[425811576,1781928639000,-151.0,0.00021082,2]
[425811588,1781928639000,-298.0,0.00021874,2]
[425811587,1781928639000,-9051.02933992,0.00021762,2]
[425811590,1781928639000,-1743.89,0.00021888,2]
[425811585,1781928639000,-27139.50945015,0.00021624,2]
[425811591,1781928639000,-220.68374284,0.000219,2]
[425811563,1781928639000,-151.0,0.00021082,2]
[425811589,1781928639000,-299.150451,0.00021874,2]
[425811582,1781928639000,-1743.89,0.00021379,2]
[425811566,1781928639000,-151.0,0.00021082,2]
[425811554,1781928639000,-529.0,0.00021,2]
[425811564,1781928639000,-151.0,0.00021082,2]
[425811593,1781928639000,-150.0,0.00021918,2]
[425811541,1781928639000,-150.0,0.0002058,2]
[425811543,1781928639000,-150.0,0.0002058,2]
[425811540,1781928639000,-2005.9555727,0.00020534,2]
[425811539,1781928639000,-166.66,0.00020384,2]
[425811542,1781928639000,-150.0,0.0002058,2]
[425811545,1781928639000,-150.0,0.0002058,2]
[425811555,1781928639000,-775.0,0.00021,2]
[425811544,1781928639000,-150.0,0.0002058,2]
[425811549,1781928639000,-1743.89,0.0002087,2]
[425811546,1781928639000,-288.49280492,0.0002058,2]
[425811550,1781928639000,-500.0,0.00020963,2]
[425811547,1781928639000,-166.66,0.0002078,2]
[425811548,1781928639000,-704.0,0.00020821,2]
[425811553,1781928639000,-159.0,0.00021,2]
[425811551,1781928639000,-529.01,0.00020963,2]
[425811552,1781928639000,-152.0,0.00021,2]
[425811558,1781928639000,-549.0,0.00021,2]
[425811556,1781928639000,-184.0,0.00021,2]
[425811559,1781928639000,-151.0,0.00021082,2]
[425811561,1781928639000,-151.0,0.00021082,2]
[425811560,1781928639000,-151.0,0.00021082,2]
[425811562,1781928639000,-151.0,0.00021082,2]
[425811557,1781928639000,-178.0,0.00021,2]
[425811567,1781928639000,-151.0,0.00021082,2]
[425811565,1781928639000,-2080.17592889,0.00021082,2]
[425811595,1781928639000,-150.0,0.00021918,2]
[425811586,1781928639000,-2157.14243826,0.0002163,2]
[425811592,1781928639000,-5000.0,0.00021918,2]
[425811623,1781928639000,-775.0,0.00022,2]
[425811624,1781928639000,-184.0,0.00022,2]
[425811627,1781928639000,-244.89608328,0.0002211,2]
[425811626,1781928639000,-549.0,0.00022,2]
[425811628,1781928639000,-2236.95670847,0.00022178,2]
[425811629,1781928639000,-155.1,0.00022353,2]
[425811631,1781928639000,-407.18,0.00022466,2]
[425811630,1781928639000,-1743.89,0.00022397,2]
[425811635,1781928639000,-2319.72410669,0.00022726,2]
[425811636,1781928639000,-479.20170633,0.00022822,30]
[425811643,1781928639000,-184.0,0.00023,2]
[425811634,1781928639000,-263.95,0.00022606,2]
[425811640,1781928639000,-152.0,0.00023,2]
[425811638,1781928639000,-809.07627054,0.00022979,2]
[425811633,1781928639000,-788.99456211,0.000225,2]
[425811637,1781928639000,-10863.03,0.0002295,2]
[425811639,1781928639000,-439.0,0.00023,2]
[425811641,1781928639000,-529.0,0.00023,2]
[425811642,1781928639000,-775.0,0.00023,2]
[425811645,1781928639000,-549.0,0.00023,2]
[425811644,1781928639000,-178.0,0.00023,2]
[425811649,1781928639000,-27139.50945015,0.00023306,2]
[425811648,1781928639000,-755.26,0.00023288,2]
[425811594,1781928639000,-150.0,0.00021918,2]
[425811646,1781928639000,-9051.02933992,0.0002314,2]
[425811625,1781928639000,-178.0,0.00022,2]
[425811621,1781928639000,-162.12492282,0.00022,2]
[425811647,1781928639000,-2405.55389863,0.00023274,2]
[425811622,1781928639000,-529.0,0.00022,2]
[425811632,1781928639000,-164.7,0.00022466,2]
[425811596,1781928639000,-150.0,0.00021918,2]
[425811597,1781928639000,-150.0,0.00021918,2]
[425811600,1781928639000,-150.0,0.00021918,2]
[425811598,1781928639000,-150.0,0.00021918,2]
[425811599,1781928639000,-150.0,0.00021918,2]
[425811602,1781928639000,-150.0,0.00021918,2]
[425811605,1781928639000,-150.0,0.00021918,2]
[425811606,1781928639000,-150.0,0.00021918,2]
[425811604,1781928639000,-150.0,0.00021918,2]
[425811601,1781928639000,-150.0,0.00021918,2]
[425811603,1781928639000,-150.0,0.00021918,2]
[425811607,1781928639000,-150.0,0.00021918,2]
[425811610,1781928639000,-150.0,0.00021918,2]
[425811616,1781928639000,-2212.8319751,0.00022,2]
[425811615,1781928639000,-500.0,0.00022,3]
[425811614,1781928639000,-500.0,0.00022,3]
[425811608,1781928639000,-150.0,0.00021918,2]
[425811617,1781928639000,-378116.03627296,0.00022,4]
[425811619,1781928639000,-479.20170633,0.00022,30]
[425811612,1781928639000,-150.0,0.00021918,2]
[425811620,1781928639000,-152.0,0.00022,2]
[425811618,1781928639000,-300.0,0.00022,2]
[425811611,1781928639000,-150.0,0.00021918,2]
[425811609,1781928639000,-150.0,0.00021918,2]
[425811613,1781928639000,-203.91261035,0.00021918,2]
[425811692,1781928640000,-184.0,0.00024768,10]
[425811681,1781928640000,-467.68,0.00024351,2]
[425811689,1781928640000,-1000.0,0.00024658,2]
[425811691,1781928640000,-154.0,0.00024658,2]
[425811677,1781928640000,-53680.59,0.00024174,2]
[425811683,1781928640000,-53024.0,0.000245,2]
[425811680,1781928640000,-150.0,0.00024333,2]
[425811682,1781928640000,-2586.85809042,0.0002437,2]
[425811676,1781928640000,-982.04,0.00024174,2]
[425811686,1781928640000,-151.00138861,0.000246,2]
[425811684,1781928640000,-9051.02933992,0.00024518,2]
[425811704,1781928640000,-2682.57183977,0.00024918,2]
[425811690,1781928640000,-154.12,0.00024658,2]
[425811687,1781928640000,-213.49344118,0.000246,2]
[425811685,1781928640000,-179.76368085,0.000246,2]
[425811694,1781928640000,-438.157559,0.00024842,2]
[425811693,1781928640000,-151.0,0.00024842,2]
[425811696,1781928640000,-438.157559,0.00024842,2]
[425811695,1781928640000,-438.157559,0.00024842,2]
[425811697,1781928640000,-438.157559,0.00024842,2]
[425811701,1781928640000,-374.18015451,0.000249,2]
[425811703,1781928640000,-898.71576372,0.000249,2]
[425811674,1781928640000,-2873.75,0.00024174,2]
[425811688,1781928640000,-151.0366749,0.000246,2]
[425811678,1781928640000,-239.60085317,0.00024192,30]
[425811663,1781928640000,-529.0,0.00024,2]
[425811673,1781928640000,-4912.0,0.00024174,5]
[425811655,1781928640000,-500.0,0.00023401,2]
[425811652,1781928640000,-520.6870103,0.00023401,2]
[425811650,1781928640000,-500.0,0.00023401,2]
[425811651,1781928640000,-502.57112359,0.00023401,2]
[425811653,1781928640000,-526.7379631,0.00023401,2]
[425811654,1781928640000,-501.47667168,0.00023401,2]
[425811657,1781928640000,-907.2182754,0.00023531,2]
[425811667,1781928640000,-549.0,0.00024,2]
[425811656,1781928640000,-500.0,0.00023401,2]
[425811661,1781928640000,-150.0,0.0002386,2]
[425811662,1781928640000,-159.0,0.00024,2]
[425811659,1781928640000,-166.48,0.00023812,2]
[425811666,1781928640000,-178.0,0.00024,2]
[425811664,1781928640000,-775.0,0.00024,2]
[425811658,1781928640000,-846.7,0.00023781,2]
[425811660,1781928640000,-2494.55939288,0.00023822,2]
[425811665,1781928640000,-184.0,0.00024,2]
[425811679,1781928640000,-155.1,0.00024324,2]
[425811669,1781928640000,-300.0,0.00024073,2]
[425811670,1781928640000,-1000.0,0.00024073,2]
[425811672,1781928640000,-661.1225485,0.00024164,2]
[425811668,1781928640000,-300.0,0.00024073,2]
[425811671,1781928640000,-356.28,0.0002411,2]
[425811675,1781928640000,-2625.1,0.00024174,2]
[425811702,1781928640000,-162.68784974,0.000249,2]
[425811700,1781928640000,-220.68374284,0.000249,2]
[425811698,1781928640000,-151.0,0.00024842,2]
[425811737,1781928640000,-352.89,0.00025,2]
[425811736,1781928640000,-352.89,0.00025,2]
[425811734,1781928640000,-352.89,0.00025,2]
[425811735,1781928640000,-438.157559,0.00025,2]
[425811732,1781928640000,-352.89,0.00025,2]
[425811733,1781928640000,-352.89,0.00025,2]
[425811741,1781928640000,-438.157559,0.00025,2]
[425811740,1781928640000,-438.157559,0.00025,2]
[425811742,1781928640000,-438.157559,0.00025,2]
[425811743,1781928640000,-558.88882288,0.00025,2]
[425811745,1781928640000,-151.0,0.00025,2]
[425811738,1781928640000,-352.89,0.00025,2]
[425811746,1781928640000,-154.12,0.00025114,7]
[425811749,1781928640000,-313.22732885,0.00025417,2]
[425811748,1781928640000,-206.0,0.00025416,2]
[425811750,1781928640000,-2781.82699784,0.00025466,2]
[425811747,1781928640000,-154.0,0.00025114,7]
[425811752,1781928640000,-428.55436711,0.0002557,2]
[425811754,1781928640000,-154.0,0.00025571,30]
[425811756,1781928640000,-500.0,0.00025593,2]
[425811755,1781928640000,-500.0,0.00025593,2]
[425811753,1781928640000,-154.12,0.00025571,30]
[425811757,1781928640000,-500.0,0.00025593,2]
[425811699,1781928640000,-1368.9391057,0.000249,2]
[425811751,1781928640000,-5528.0,0.000255,5]
[425811729,1781928640000,-352.89,0.00025,2]
[425811744,1781928640000,-5528.0,0.00025,3]
[425811731,1781928640000,-352.89,0.00025,2]
[425811705,1781928640000,-676.94,0.0002494,2]
[425811730,1781928640000,-352.89,0.00025,2]
[425811711,1781928640000,-1818.5898779,0.00025,2]
[425811707,1781928640000,-300.0,0.00024999,10]
[425811706,1781928640000,-27139.50945015,0.00024987,2]
[425811710,1781928640000,-29493.2630562,0.00025,60]
[425811708,1781928640000,-150.0,0.00024999,20]
[425811709,1781928640000,-211.40724256,0.00025,2]
[425811713,1781928640000,-622.30483717,0.00025,2]
[425811715,1781928640000,-7261.4787169,0.00025,2]
[425811714,1781928640000,-3100.75674229,0.00025,2]
[425811717,1781928640000,-3378.12247993,0.00025,2]
[425811712,1781928640000,-540.0,0.00025,2]
[425811728,1781928640000,-187.0,0.00025,2]
[425811739,1781928640000,-352.89,0.00025,2]
[425811716,1781928640000,-2241.98134344,0.00025,2]
[425811724,1781928640000,-782.70008222,0.00025,2]
[425811721,1781928640000,-1006.11361588,0.00025,2]
[425811726,1781928640000,-191.84484808,0.00025,2]
[425811723,1781928640000,-542.21825695,0.00025,2]
[425811720,1781928640000,-1864921.259172,0.00025,2]
[425811727,1781928640000,-151.358337,0.00025,2]
[425811718,1781928640000,-170.47794047,0.00025,2]
[425811719,1781928640000,-4882.93828405,0.00025,2]
[425811722,1781928640000,-690.52,0.00025,7]
[425811796,1781928641000,-529.01,0.00026879,2]
[425811792,1781928641000,-2991.49051684,0.00026562,2]
[425811799,1781928641000,-3560.0,0.00027098,2]
[425811797,1781928641000,-164.7,0.00026959,2]
[425811795,1781928641000,-466.80076155,0.00026879,2]
[425811784,1781928641000,-28031.17799352,0.000264,2]
[425811793,1781928641000,-27139.50945015,0.00026668,2]
[425811791,1781928641000,-229.0,0.00026548,7]
[425811790,1781928641000,-150.0,0.00026496,5]
[425811788,1781928641000,-379.804831,0.00026494,2]
[425811798,1781928641000,-162.68784972,0.00027044,2]
[425811794,1781928641000,-1000.0,0.00026854,2]
[425811800,1781928641000,-503.0,0.00027137,2]
[425811822,1781928641000,-151.000006,0.00027397,2]
[425811801,1781928641000,-1538.18392369,0.0002719,14]
[425811803,1781928641000,-1196.89807661,0.000272,2]
[425811805,1781928641000,-417.25378236,0.000272,2]
[425811804,1781928641000,-328.84726444,0.000272,2]
[425811806,1781928641000,-227.30668897,0.000272,2]
[425811810,1781928641000,-387.0,0.0002722,2]
[425811807,1781928641000,-690.52,0.000272,7]
[425811809,1781928641000,-1279.283,0.0002722,2]
[425811808,1781928641000,-1368.605,0.0002722,2]
[425811812,1781928641000,-9051.02933992,0.00027274,2]
[425811811,1781928641000,-3583.66029697,0.0002726,2]
[425811785,1781928641000,-208.1712796,0.00026447,2]
[425811802,1781928641000,-1933.96722724,0.000272,2]
[425811783,1781928641000,-155.1,0.00026296,2]
[425811761,1781928641000,-500.0,0.00025593,2]
[425811781,1781928641000,-1783.53,0.00026192,2]
[425811813,1781928641000,-1229.25,0.00027326,2]
[425811764,1781928641000,-150.0,0.00025593,2]
[425811758,1781928641000,-500.0,0.00025593,2]
[425811763,1781928641000,-376.46013189,0.00025593,2]
[425811759,1781928641000,-500.0,0.00025593,2]
[425811760,1781928641000,-500.0,0.00025593,2]
[425811762,1781928641000,-500.0,0.00025593,2]
[425811765,1781928641000,-500.0,0.00025699,2]
[425811768,1781928641000,-982.04,0.00025786,2]
[425811769,1781928641000,-53680.59,0.00025786,2]
[425811767,1781928641000,-2873.75,0.00025786,2]
[425811770,1781928641000,-9051.02933992,0.00025896,2]
[425811787,1781928641000,-365.269482,0.00026492,2]
[425811773,1781928641000,-1134.98924455,0.00026,2]
[425811774,1781928641000,-4610.88759577,0.00026,2]
[425811772,1781928641000,-612.59133806,0.0002599,2]
[425811766,1781928641000,-1000.46331518,0.00025763,2]
[425811777,1781928641000,-153.23,0.00026027,2]
[425811776,1781928641000,-2884.75459676,0.00026014,2]
[425811771,1781928641000,-846.7,0.00025943,2]
[425811779,1781928641000,-154.0,0.00026027,2]
[425811789,1781928641000,-336.7446,0.00026495,2]
[425811778,1781928641000,-154.12,0.00026027,2]
[425811780,1781928641000,-254.49,0.00026027,7]
[425811786,1781928641000,-466.36,0.00026455,2]
[425811782,1781928641000,-690.52,0.000262,7]